[Event "Early-Titled-Tuesday-Blitz-February-06-2024"]
[Site "Chess.com"]
[Date "2024.02.06"]
[Round "2"]
[White "gmcorrales"]
[Black "Perecke"]
[Result "1/2-1/2"]
[WhiteElo "2861"]
[BlackElo "2598"]
[TimeControl "180+1"]
[EndTime "8:18:01 PST"]
[Termination "Game drawn by repetition"]

1. e4 {[%clk 0:03:00.9]} 1... c5 {[%clk 0:02:58.1]} 2. Nf3 {[%clk 0:03:00.1]}
2... e6 {[%clk 0:02:58.3]} 3. d4 {[%clk 0:02:59.6]} 3... cxd4 {[%clk 0:02:59.2]}
4. Nxd4 {[%clk 0:03:00]} 4... Nc6 {[%clk 0:02:59.7]} 5. Nc3 {[%clk 0:03:00.3]}
5... Qc7 {[%clk 0:03:00]} 6. a3 {[%clk 0:02:58.7]} 6... a6 {[%clk 0:03:00.1]} 7.
Nxc6 {[%clk 0:02:56.6]} 7... bxc6 {[%clk 0:02:56.9]} 8. Be2 {[%clk 0:02:57.5]}
8... d5 {[%clk 0:02:57.4]} 9. Qd3 {[%clk 0:02:57.5]} 9... Nf6 {[%clk 0:02:56.7]}
10. b3 {[%clk 0:02:41.3]} 10... Bd6 {[%clk 0:02:54]} 11. Bb2 {[%clk 0:02:40.8]}
11... O-O {[%clk 0:02:53.3]} 12. g3 {[%clk 0:02:39.9]} 12... Be5 {[%clk
0:02:50.9]} 13. f4 {[%clk 0:02:27.1]} 13... dxe4 {[%clk 0:02:47]} 14. Qe3 {[%clk
0:02:26.5]} 14... Bxc3+ {[%clk 0:02:44.1]} 15. Qxc3 {[%clk 0:02:27.4]} 15... c5
{[%clk 0:02:32.7]} 16. O-O-O {[%clk 0:02:24.1]} 16... Bb7 {[%clk 0:02:31.2]} 17.
Qe5 {[%clk 0:02:16.6]} 17... Qxe5 {[%clk 0:02:25.9]} 18. Bxe5 {[%clk 0:02:17.5]}
18... Rfd8 {[%clk 0:02:25.8]} 19. c4 {[%clk 0:01:50.3]} 19... e3 {[%clk
0:02:14.5]} 20. Rxd8+ {[%clk 0:01:47.6]} 20... Rxd8 {[%clk 0:02:14.1]} 21. Rd1
{[%clk 0:01:48.5]} 21... Rxd1+ {[%clk 0:01:56.8]} 22. Kxd1 {[%clk 0:01:49.4]}
22... Ne4 {[%clk 0:01:55.9]} 23. Kc2 {[%clk 0:01:46.5]} 23... f6 {[%clk
0:01:49.9]} 24. Bb8 {[%clk 0:01:45.9]} 24... Kf7 {[%clk 0:01:26.5]} 25. Kd3
{[%clk 0:01:43.9]} 25... Nd2 {[%clk 0:01:02.8]} 26. b4 {[%clk 0:01:35.7]} 26...
cxb4 {[%clk 0:01:01.4]} 27. axb4 {[%clk 0:01:36.6]} 27... a5 {[%clk 0:00:51.9]}
28. bxa5 {[%clk 0:01:32.8]} 28... Nxc4 {[%clk 0:00:51.5]} 29. Kxc4 {[%clk
0:01:26.7]} 29... Ba6+ {[%clk 0:00:51.1]} 30. Kd4 {[%clk 0:01:27.1]} 30... Bxe2
{[%clk 0:00:52]} 31. Kxe3 {[%clk 0:01:27.7]} 31... Bf1 {[%clk 0:00:47.6]} 32.
Kd4 {[%clk 0:01:27.8]} 32... Ke7 {[%clk 0:00:47.5]} 33. Kc5 {[%clk 0:01:28.3]}
33... Kd7 {[%clk 0:00:48.1]} 34. Kb6 {[%clk 0:01:28]} 34... g5 {[%clk
0:00:43.5]} 35. fxg5 {[%clk 0:01:24.4]} 35... fxg5 {[%clk 0:00:44.4]} 36. Be5
{[%clk 0:01:24.6]} 36... Bg2 {[%clk 0:00:43.6]} 37. a6 {[%clk 0:01:23.4]} 37...
h5 {[%clk 0:00:43.1]} 38. Bf6 {[%clk 0:01:19]} 38... g4 {[%clk 0:00:41.1]} 39.
Be5 {[%clk 0:01:18.9]} 39... Bd5 {[%clk 0:00:36.1]} 40. Bf4 {[%clk 0:01:18.4]}
40... Be4 {[%clk 0:00:36.4]} 41. Kc5 {[%clk 0:01:18.7]} 41... Bd5 {[%clk
0:00:35]} 42. Kd4 {[%clk 0:01:18.2]} 42... Kc6 {[%clk 0:00:30.9]} 43. a7 {[%clk
0:01:14.9]} 43... Kb7 {[%clk 0:00:26.9]} 44. Bb8 {[%clk 0:01:14.7]} 44... Bc6
{[%clk 0:00:19.7]} 45. Ke5 {[%clk 0:01:15.1]} 45... Bd7 {[%clk 0:00:20.1]} 46.
Kd6 {[%clk 0:01:14.2]} 46... Bc8 {[%clk 0:00:20.7]} 47. Ke5 {[%clk 0:01:11.6]}
47... Bd7 {[%clk 0:00:20.8]} 48. Kf6 {[%clk 0:01:12.5]} 48... Ka8 {[%clk
0:00:19.5]} 49. Kg5 {[%clk 0:01:05.9]} 49... Be8 {[%clk 0:00:19.9]} 50. Kf6
{[%clk 0:01:03.2]} 50... Bd7 {[%clk 0:00:19.9]} 51. Kf7 {[%clk 0:01:03.7]} 51...
Kb7 {[%clk 0:00:19.2]} 52. Ke7 {[%clk 0:01:03.8]} 52... Bc8 {[%clk 0:00:19.2]}
53. Kd8 {[%clk 0:00:56.7]} 53... e5 {[%clk 0:00:19.7]} 54. Bxe5 {[%clk
0:00:57.1]} 54... Bf5 {[%clk 0:00:18.5]} 55. Bd4 {[%clk 0:00:56.2]} 55... Bg6
{[%clk 0:00:14.6]} 56. Ke7 {[%clk 0:00:55.1]} 56... Ka8 {[%clk 0:00:15.2]} 57.
Kf8 {[%clk 0:00:55.2]} 57... Kb7 {[%clk 0:00:15.2]} 58. Kg7 {[%clk 0:00:55.3]}
58... Be8 {[%clk 0:00:15.7]} 59. Be3 {[%clk 0:00:54.4]} 59... Ka8 {[%clk
0:00:16.1]} 60. Kf6 {[%clk 0:00:54.9]} 60... Kb7 {[%clk 0:00:16.5]} 61. Ke7
{[%clk 0:00:55.8]} 61... Bg6 {[%clk 0:00:17]} 62. Bf2 {[%clk 0:00:55.2]} 62...
Ka8 {[%clk 0:00:17.2]} 63. Kd8 {[%clk 0:00:53.6]} 63... Kb7 {[%clk 0:00:17.4]}
64. Kd7 {[%clk 0:00:54.5]} 64... Ka8 {[%clk 0:00:17.8]} 65. Kc7 {[%clk
0:00:55.2]} 65... Bf7 {[%clk 0:00:17.7]} 66. Kb6 {[%clk 0:00:56.1]} 66... Bg6
{[%clk 0:00:18.6]} 67. Be3 {[%clk 0:00:54.3]} 67... Bf7 {[%clk 0:00:18.8]} 68.
Bc5 {[%clk 0:00:54.6]} 68... Bg6 {[%clk 0:00:19.3]} 69. Kc6 {[%clk 0:00:55.5]}
69... Bf7 {[%clk 0:00:19.7]} 70. Kd6 {[%clk 0:00:56.4]} 70... Bg6 {[%clk
0:00:20.6]} 71. Ke6 {[%clk 0:00:56.4]} 71... Be8 {[%clk 0:00:21.2]} 72. Kf6
{[%clk 0:00:57.3]} 72... Kb7 {[%clk 0:00:21.3]} 73. Bd4 {[%clk 0:00:57.6]} 73...
Ka8 {[%clk 0:00:21.5]} 74. Kg7 {[%clk 0:00:57.5]} 74... Kb7 {[%clk 0:00:21.8]}
75. Kf8 {[%clk 0:00:57.9]} 75... Bg6 {[%clk 0:00:22.5]} 76. Ke7 {[%clk
0:00:58.4]} 76... Ka8 {[%clk 0:00:22.7]} 77. Kf6 {[%clk 0:00:58.7]} 77... Be8
{[%clk 0:00:23.4]} 78. Kg7 {[%clk 0:00:52.3]} 78... Kb7 {[%clk 0:00:23.1]}
1/2-1/2

[Event "Early-Titled-Tuesday-Blitz-February-06-2024"]
[Site "Chess.com"]
[Date "2024.02.06"]
[Round "2"]
[White "ama18"]
[Black "Abund"]
[Result "0-1"]
[WhiteElo "2539"]
[BlackElo "2752"]
[TimeControl "180+1"]
[EndTime "8:18:01 PST"]
[Termination "Abund won by resignation"]

1. Nf3 {[%clk 0:02:57.5]} 1... Nf6 {[%clk 0:02:56.7]} 2. g3 {[%clk 0:02:53.1]}
2... b5 {[%clk 0:02:56.6]} 3. Na3 {[%clk 0:02:51.1]} 3... a6 {[%clk 0:02:56]} 4.
c4 {[%clk 0:02:50.4]} 4... e6 {[%clk 0:02:39.1]} 5. cxb5 {[%clk 0:02:43.9]} 5...
Bxa3 {[%clk 0:02:39]} 6. bxa3 {[%clk 0:02:44.3]} 6... axb5 {[%clk 0:02:39.7]} 7.
Bg2 {[%clk 0:02:44.7]} 7... Bb7 {[%clk 0:02:35.3]} 8. O-O {[%clk 0:02:43.9]}
8... O-O {[%clk 0:02:33]} 9. Qb3 {[%clk 0:02:44.5]} 9... Bc6 {[%clk 0:02:29.3]}
10. Bb2 {[%clk 0:02:43.4]} 10... Na6 {[%clk 0:02:26.7]} 11. Bd4 {[%clk
0:02:37.3]} 11... Qe7 {[%clk 0:02:23.2]} 12. Rfc1 {[%clk 0:02:35.7]} 12... Rfb8
{[%clk 0:02:21.3]} 13. Qb2 {[%clk 0:02:29.2]} 13... h6 {[%clk 0:02:20.8]} 14.
Rxc6 {[%clk 0:02:22.9]} 14... dxc6 {[%clk 0:02:18.1]} 15. Ne5 {[%clk 0:02:23.5]}
15... c5 {[%clk 0:02:07.8]} 16. Nc6 {[%clk 0:01:55.9]} 16... Qd6 {[%clk
0:02:04.2]} 17. Bxf6 {[%clk 0:01:07.2]} 17... gxf6 {[%clk 0:02:03.8]} 18. Qxf6
{[%clk 0:00:45.1]} 18... Re8 {[%clk 0:02:03.6]} 19. Ne5 {[%clk 0:00:44.6]} 19...
Qf8 {[%clk 0:01:56.8]} 20. Bxa8 {[%clk 0:00:24.6]} 20... Rxa8 {[%clk 0:01:57.7]}
21. Rc1 {[%clk 0:00:11.3]} 21... Qg7 {[%clk 0:01:53]} 22. Qf3 {[%clk 0:00:10.3]}
22... Rd8 {[%clk 0:01:44.6]} 23. Ng4 {[%clk 0:00:08.3]} 23... f5 {[%clk
0:01:30.1]} 24. Ne3 {[%clk 0:00:07.6]} 24... Rd6 {[%clk 0:01:20.1]} 25. Qb7
{[%clk 0:00:07.4]} 25... Rb6 {[%clk 0:01:07.1]} 26. Qc8+ {[%clk 0:00:07.3]}
26... Kh7 {[%clk 0:01:07.7]} 27. Ng2 {[%clk 0:00:06.8]} 27... Qb2 {[%clk
0:00:52]} 28. Rf1 {[%clk 0:00:03.4]} 28... Qxd2 {[%clk 0:00:50.9]} 29. Nf4
{[%clk 0:00:03.5]} 29... Qd6 {[%clk 0:00:41.5]} 30. Qe8 {[%clk 0:00:03.7]} 30...
e5 {[%clk 0:00:38.2]} 31. Qf7+ {[%clk 0:00:03.6]} 31... Kh8 {[%clk 0:00:38.8]}
32. Nh5 {[%clk 0:00:02.9]} 32... Qg6 {[%clk 0:00:34.2]} 33. Qf8+ {[%clk
0:00:03.2]} 33... Kh7 {[%clk 0:00:34.6]} 34. Nf4 {[%clk 0:00:02.4]} 34... exf4
{[%clk 0:00:34.5]} 35. Qe7+ {[%clk 0:00:03]} 35... Qg7 {[%clk 0:00:34.1]} 36.
Qe8 {[%clk 0:00:03.2]} 36... Qg6 {[%clk 0:00:32.4]} 37. Qe7+ {[%clk 0:00:02.7]}
37... Qg7 {[%clk 0:00:32.6]} 38. Qe8 {[%clk 0:00:03.2]} 38... c4 {[%clk
0:00:26.8]} 39. Rd1 {[%clk 0:00:03.3]} 39... Rd6 {[%clk 0:00:27.2]} 40. Rb1
{[%clk 0:00:03.1]} 40... c6 {[%clk 0:00:23.3]} 41. a4 {[%clk 0:00:03.6]} 41...
c3 {[%clk 0:00:21.8]} 42. Qc8 {[%clk 0:00:03.6]} 42... Qd7 {[%clk 0:00:19.4]}
43. Qxa6 {[%clk 0:00:03.3]} 43... c2 {[%clk 0:00:20]} 44. Rb4 {[%clk 0:00:03.7]}
44... c1=Q+ {[%clk 0:00:20]} 45. Kg2 {[%clk 0:00:04.6]} 45... Qc5 {[%clk
0:00:18.1]} 46. Rxf4 {[%clk 0:00:04.7]} 46... Qca7 {[%clk 0:00:17.8]} 0-1

[Event "Early-Titled-Tuesday-Blitz-February-06-2024"]
[Site "Chess.com"]
[Date "2024.02.06"]
[Round "2"]
[White "HelvertHernandez"]
[Black "Kotofeyca"]
[Result "0-1"]
[WhiteElo "1925"]
[BlackElo "2408"]
[TimeControl "180+1"]
[EndTime "8:18:01 PST"]
[Termination "Kotofeyca won on time"]

1. e4 {[%clk 0:03:00.9]} 1... c5 {[%clk 0:02:51.8]} 2. Nf3 {[%clk 0:02:59.8]}
2... d6 {[%clk 0:02:52.3]} 3. d4 {[%clk 0:02:58.5]} 3... cxd4 {[%clk 0:02:53.2]}
4. Nxd4 {[%clk 0:02:58.4]} 4... Nf6 {[%clk 0:02:53.9]} 5. Nc3 {[%clk 0:02:58.7]}
5... a6 {[%clk 0:02:54.3]} 6. Be3 {[%clk 0:02:58.2]} 6... Ng4 {[%clk 0:02:53.7]}
7. Bc1 {[%clk 0:02:57.1]} 7... Nc6 {[%clk 0:02:53.7]} 8. f3 {[%clk 0:02:55.7]}
8... Qb6 {[%clk 0:02:53.7]} 9. fxg4 {[%clk 0:02:50.8]} 9... Qxd4 {[%clk
0:02:53]} 10. Qxd4 {[%clk 0:02:48.4]} 10... Nxd4 {[%clk 0:02:53.9]} 11. Bd3
{[%clk 0:02:43.9]} 11... Bxg4 {[%clk 0:02:53.6]} 12. Be3 {[%clk 0:02:41.9]}
12... Ne6 {[%clk 0:02:49.8]} 13. O-O {[%clk 0:02:31.8]} 13... Rc8 {[%clk
0:02:49.1]} 14. Nd5 {[%clk 0:02:27.2]} 14... Nc5 {[%clk 0:02:29.9]} 15. Rac1
{[%clk 0:02:14.4]} 15... e6 {[%clk 0:02:10.2]} 16. Bxc5 {[%clk 0:02:11.8]} 16...
Rxc5 {[%clk 0:01:59.1]} 17. Ne3 {[%clk 0:02:08.8]} 17... Bh5 {[%clk 0:01:59]}
18. c4 {[%clk 0:02:01.2]} 18... Be7 {[%clk 0:01:58.2]} 19. b4 {[%clk 0:01:56.2]}
19... Rc7 {[%clk 0:01:55.6]} 20. a3 {[%clk 0:01:49.2]} 20... Kd7 {[%clk
0:01:51.8]} 21. h3 {[%clk 0:01:46.6]} 21... Rhc8 {[%clk 0:01:50.1]} 22. g4
{[%clk 0:01:36.4]} 22... Bg6 {[%clk 0:01:50.2]} 23. Ng2 {[%clk 0:01:34.4]} 23...
b5 {[%clk 0:01:47.4]} 24. h4 {[%clk 0:01:21.9]} 24... bxc4 {[%clk 0:01:45.6]}
25. Bb1 {[%clk 0:01:17.3]} 25... f6 {[%clk 0:01:32.5]} 26. h5 {[%clk 0:01:16.5]}
26... Bf7 {[%clk 0:01:32.4]} 27. Nf4 {[%clk 0:01:13.6]} 27... c3 {[%clk
0:01:20.9]} 28. Kg2 {[%clk 0:01:04.2]} 28... c2 {[%clk 0:01:18.1]} 29. Ba2
{[%clk 0:01:03.1]} 29... g5 {[%clk 0:01:15.9]} 30. hxg6 {[%clk 0:01:01.5]} 30...
hxg6 {[%clk 0:01:16.8]} 31. Rh1 {[%clk 0:00:57.9]} 31... g5 {[%clk 0:01:15]} 32.
Rh7 {[%clk 0:00:50.8]} 32... Rf8 {[%clk 0:01:10.2]} 33. Nd3 {[%clk 0:00:33.1]}
33... Bg6 {[%clk 0:01:08]} 34. Rh3 {[%clk 0:00:26.8]} 34... Bxe4+ {[%clk
0:01:07.9]} 35. Kf2 {[%clk 0:00:27.1]} 35... Rc3 {[%clk 0:00:57.2]} 36. Nf4
{[%clk 0:00:22.3]} 36... gxf4 {[%clk 0:00:38.6]} 37. Rxc3 {[%clk 0:00:20.7]}
37... Rh8 {[%clk 0:00:37.7]} 38. Bb3 {[%clk 0:00:14.3]} 38... Rh2+ {[%clk
0:00:36]} 39. Kg1 {[%clk 0:00:10.8]} 39... Rh1+ {[%clk 0:00:36.3]} 40. Kf2
{[%clk 0:00:10.8]} 40... Rxc1 {[%clk 0:00:37.2]} 41. Ke2 {[%clk 0:00:09.9]}
41... d5 {[%clk 0:00:35.6]} 42. Kd2 {[%clk 0:00:09.3]} 42... Ra1 {[%clk
0:00:35.7]} 43. Bxc2 {[%clk 0:00:09.2]} 43... Ra2 {[%clk 0:00:35.8]} 44. Kc1
{[%clk 0:00:08.7]} 44... Rxc2+ {[%clk 0:00:35.8]} 45. Rxc2 {[%clk 0:00:07.5]}
45... Bxc2 {[%clk 0:00:36.7]} 46. Kxc2 {[%clk 0:00:07.9]} 46... e5 {[%clk
0:00:37.6]} 47. Kd3 {[%clk 0:00:08.1]} 47... Kc6 {[%clk 0:00:34.2]} 48. Kc3
{[%clk 0:00:07.6]} 48... f3 {[%clk 0:00:33.3]} 49. Kd3 {[%clk 0:00:07.6]} 49...
e4+ {[%clk 0:00:33.7]} 50. Ke3 {[%clk 0:00:07.7]} 50... Bd6 {[%clk 0:00:32.5]}
51. Kf2 {[%clk 0:00:06.6]} 51... Bf4 {[%clk 0:00:32.1]} 52. Kf1 {[%clk
0:00:06.1]} 52... Kb5 {[%clk 0:00:32.4]} 53. Ke1 {[%clk 0:00:06.2]} 53... e3
{[%clk 0:00:32.2]} 54. Kf1 {[%clk 0:00:06.2]} 54... Bg3 {[%clk 0:00:32.3]} 55.
Kg1 {[%clk 0:00:05.4]} 55... e2 {[%clk 0:00:32.6]} 0-1

[Event "Early-Titled-Tuesday-Blitz-February-06-2024"]
[Site "Chess.com"]
[Date "2024.02.06"]
[Round "2"]
[White "BashirliSaadat"]
[Black "brm72"]
[Result "0-1"]
[WhiteElo "2367"]
[BlackElo "2676"]
[TimeControl "180+1"]
[EndTime "8:18:02 PST"]
[Termination "brm72 won on time"]

1. d4 {[%clk 0:03:00.9]} 1... Nf6 {[%clk 0:02:59.7]} 2. e3 {[%clk 0:03:01.3]}
2... e6 {[%clk 0:02:57.9]} 3. Bd3 {[%clk 0:03:00.6]} 3... d5 {[%clk 0:02:57.6]}
4. f4 {[%clk 0:02:59.4]} 4... c5 {[%clk 0:02:53.3]} 5. c3 {[%clk 0:02:59.5]}
5... b6 {[%clk 0:02:53.5]} 6. Nf3 {[%clk 0:02:59.9]} 6... Bd6 {[%clk 0:02:49.7]}
7. O-O {[%clk 0:02:59.1]} 7... O-O {[%clk 0:02:47.8]} 8. Ne5 {[%clk 0:02:56.7]}
8... Ne4 {[%clk 0:02:41.9]} 9. Nd2 {[%clk 0:02:55.6]} 9... f5 {[%clk 0:02:41.1]}
10. Qe1 {[%clk 0:02:52.4]} 10... Bd7 {[%clk 0:02:38.5]} 11. Rf3 {[%clk
0:02:50.8]} 11... Bxe5 {[%clk 0:02:31.5]} 12. fxe5 {[%clk 0:02:49.6]} 12... Be8
{[%clk 0:02:24]} 13. Bxe4 {[%clk 0:02:31.8]} 13... dxe4 {[%clk 0:02:09.4]} 14.
Rf1 {[%clk 0:02:27.1]} 14... g5 {[%clk 0:02:06.4]} 15. a4 {[%clk 0:02:21.1]}
15... Nc6 {[%clk 0:02:02.5]} 16. Nc4 {[%clk 0:02:19.9]} 16... Bg6 {[%clk
0:01:57.7]} 17. Nd6 {[%clk 0:02:18.1]} 17... Ne7 {[%clk 0:01:44.9]} 18. Bd2
{[%clk 0:02:03.1]} 18... Nc8 {[%clk 0:01:15.3]} 19. Nc4 {[%clk 0:02:00.7]} 19...
Qe7 {[%clk 0:01:06.5]} 20. Qe2 {[%clk 0:01:50.7]} 20... Qg7 {[%clk 0:00:56.2]}
21. b4 {[%clk 0:01:48.3]} 21... cxd4 {[%clk 0:00:56.1]} 22. cxd4 {[%clk
0:01:47.7]} 22... Ne7 {[%clk 0:00:55.8]} 23. Nd6 {[%clk 0:01:45.1]} 23... Nd5
{[%clk 0:00:56.3]} 24. Rac1 {[%clk 0:01:45.1]} 24... h5 {[%clk 0:00:52.4]} 25.
Rc2 {[%clk 0:01:22.4]} 25... Rad8 {[%clk 0:00:40.4]} 26. Rc6 {[%clk 0:01:18]}
26... Qh7 {[%clk 0:00:38.4]} 27. g3 {[%clk 0:01:01.6]} 27... h4 {[%clk
0:00:31.9]} 28. Kg2 {[%clk 0:01:00.4]} 28... h3+ {[%clk 0:00:27.9]} 29. Kg1
{[%clk 0:00:57.8]} 29... Bh5 {[%clk 0:00:28.4]} 30. Qe1 {[%clk 0:00:48.9]} 30...
Bf3 {[%clk 0:00:21.8]} 31. Nc4 {[%clk 0:00:37.5]} 31... f4 {[%clk 0:00:18.3]}
32. Rxe6 {[%clk 0:00:32.3]} 32... Bg2 {[%clk 0:00:13.8]} 33. exf4 {[%clk
0:00:12.5]} 33... Bxf1 {[%clk 0:00:13.1]} 34. Qxf1 {[%clk 0:00:12]} 34... gxf4
{[%clk 0:00:13.3]} 35. gxf4 {[%clk 0:00:07.1]} 35... Qf5 {[%clk 0:00:12.2]} 36.
Rh6 {[%clk 0:00:05.6]} 36... Rf7 {[%clk 0:00:08.4]} 37. Rxh3 {[%clk 0:00:05]}
37... Rg7+ {[%clk 0:00:08.4]} 38. Rg3 {[%clk 0:00:05]} 38... Rxg3+ {[%clk
0:00:08.4]} 39. hxg3 {[%clk 0:00:05.9]} 39... Qg4 {[%clk 0:00:07.9]} 40. Kg2
{[%clk 0:00:04.9]} 40... Rc8 {[%clk 0:00:04.9]} 41. Nd6 {[%clk 0:00:01.1]} 41...
Rc2 {[%clk 0:00:04.8]} 42. Qe1 {[%clk 0:00:01.7]} 42... e3 {[%clk 0:00:04.9]}
0-1

[Event "Early-Titled-Tuesday-Blitz-February-06-2024"]
[Site "Chess.com"]
[Date "2024.02.06"]
[Round "2"]
[White "Ditman2007"]
[Black "BogdanDeac"]
[Result "1-0"]
[WhiteElo "2666"]
[BlackElo "3019"]
[TimeControl "180+1"]
[EndTime "8:18:03 PST"]
[Termination "Ditman2007 won on time"]

1. e4 {[%clk 0:03:00.9]} 1... c6 {[%clk 0:02:59.7]} 2. d4 {[%clk 0:03:00.4]}
2... d5 {[%clk 0:03:00.6]} 3. e5 {[%clk 0:03:00.9]} 3... Bf5 {[%clk 0:03:00.2]}
4. c4 {[%clk 0:03:01.2]} 4... e6 {[%clk 0:02:59.7]} 5. Nc3 {[%clk 0:03:01.4]}
5... dxc4 {[%clk 0:02:57.1]} 6. Bxc4 {[%clk 0:02:58.9]} 6... Nd7 {[%clk
0:02:57.2]} 7. Nge2 {[%clk 0:02:57.8]} 7... Nb6 {[%clk 0:02:54.2]} 8. Bb3 {[%clk
0:02:58.1]} 8... Ne7 {[%clk 0:02:44.7]} 9. O-O {[%clk 0:02:57.9]} 9... Bg6
{[%clk 0:02:23.1]} 10. a4 {[%clk 0:02:41.5]} 10... a5 {[%clk 0:02:20.6]} 11. Be3
{[%clk 0:02:08.8]} 11... Nf5 {[%clk 0:02:16]} 12. Ng3 {[%clk 0:02:08.9]} 12...
Nh4 {[%clk 0:01:13.9]} 13. f4 {[%clk 0:01:43.9]} 13... Be7 {[%clk 0:01:06.6]}
14. Bf2 {[%clk 0:01:42.5]} 14... h5 {[%clk 0:00:58.3]} 15. Bc2 {[%clk
0:01:39.7]} 15... Bxc2 {[%clk 0:00:54]} 16. Qxc2 {[%clk 0:01:40.6]} 16... g6
{[%clk 0:00:54.1]} 17. Nge4 {[%clk 0:01:22.1]} 17... Nf5 {[%clk 0:00:52.9]} 18.
Rad1 {[%clk 0:01:21.7]} 18... Nd5 {[%clk 0:00:47.7]} 19. Nc5 {[%clk 0:01:05.3]}
19... b6 {[%clk 0:00:40.6]} 20. Nd3 {[%clk 0:01:05.3]} 20... Nb4 {[%clk
0:00:35.4]} 21. Qd2 {[%clk 0:01:00.6]} 21... Qd7 {[%clk 0:00:32]} 22. Ne4 {[%clk
0:00:58.5]} 22... Qd5 {[%clk 0:00:27.7]} 23. Rfe1 {[%clk 0:00:49.9]} 23... O-O
{[%clk 0:00:26.5]} 24. h3 {[%clk 0:00:42.6]} 24... h4 {[%clk 0:00:26.1]} 25. Qe2
{[%clk 0:00:37.3]} 25... Rfd8 {[%clk 0:00:21.6]} 26. Qg4 {[%clk 0:00:36.4]}
26... Kg7 {[%clk 0:00:21.8]} 27. Nf6 {[%clk 0:00:32.3]} 27... Bxf6 {[%clk
0:00:19.9]} 28. exf6+ {[%clk 0:00:33.2]} 28... Kxf6 {[%clk 0:00:08.8]} 29. Re5
{[%clk 0:00:33.3]} 29... Qb3 {[%clk 0:00:07.7]} 30. Nxb4 {[%clk 0:00:29.8]}
30... axb4 {[%clk 0:00:07.5]} 31. Bxh4+ {[%clk 0:00:20.5]} 31... Nxh4 {[%clk
0:00:07.2]} 32. Qxh4+ {[%clk 0:00:21.4]} 32... Kg7 {[%clk 0:00:07.8]} 33. Rd2
{[%clk 0:00:10.8]} 33... Qxa4 {[%clk 0:00:05.7]} 34. Kh2 {[%clk 0:00:08.9]}
34... Qa1 {[%clk 0:00:04.9]} 35. Rf2 {[%clk 0:00:08.5]} 35... Rd5 {[%clk
0:00:04.6]} 36. Qe7 {[%clk 0:00:08.7]} 36... Rf8 {[%clk 0:00:03.8]} 37. Rxe6
{[%clk 0:00:09]} 37... Rf5 {[%clk 0:00:03.6]} 38. Ree2 {[%clk 0:00:09.1]} 38...
Qd1 {[%clk 0:00:03.2]} 39. Qe4 {[%clk 0:00:09.5]} 39... Qc1 {[%clk 0:00:03.1]}
40. Rc2 {[%clk 0:00:09.8]} 40... Qd1 {[%clk 0:00:03.1]} 41. Rxc6 {[%clk
0:00:10]} 41... Rd8 {[%clk 0:00:03.3]} 42. Rc4 {[%clk 0:00:10.4]} 42... b3
{[%clk 0:00:03.3]} 43. Rc3 {[%clk 0:00:10.5]} 43... Rfd5 {[%clk 0:00:03.5]} 44.
Rd3 {[%clk 0:00:10.7]} 44... Qb1 {[%clk 0:00:03.1]} 45. f5 {[%clk 0:00:10.7]}
45... R8d7 {[%clk 0:00:01.6]} 46. f6+ {[%clk 0:00:11]} 46... Kg8 {[%clk
0:00:01.2]} 47. Qe8+ {[%clk 0:00:10.2]} 1-0

[Event "Early-Titled-Tuesday-Blitz-February-06-2024"]
[Site "Chess.com"]
[Date "2024.02.06"]
[Round "2"]
[White "Timerkhanov"]
[Black "GHANDEEVAM2003"]
[Result "0-1"]
[WhiteElo "2647"]
[BlackElo "3015"]
[TimeControl "180+1"]
[EndTime "8:18:03 PST"]
[Termination "GHANDEEVAM2003 won by resignation"]

1. d4 {[%clk 0:03:00.9]} 1... e6 {[%clk 0:02:57.7]} 2. Nf3 {[%clk 0:02:58.1]}
2... c5 {[%clk 0:02:57.7]} 3. g3 {[%clk 0:02:57.7]} 3... cxd4 {[%clk 0:02:57.6]}
4. Nxd4 {[%clk 0:02:58.6]} 4... Nf6 {[%clk 0:02:54.3]} 5. Bg2 {[%clk 0:02:58.3]}
5... Bb4+ {[%clk 0:02:53.8]} 6. c3 {[%clk 0:02:48.2]} 6... Ba5 {[%clk
0:02:53.7]} 7. O-O {[%clk 0:02:48.1]} 7... O-O {[%clk 0:02:53.1]} 8. c4 {[%clk
0:02:38.6]} 8... Nc6 {[%clk 0:02:52.1]} 9. b3 {[%clk 0:02:36]} 9... d5 {[%clk
0:02:50.4]} 10. cxd5 {[%clk 0:02:34.4]} 10... Nxd4 {[%clk 0:02:41.7]} 11. Qxd4
{[%clk 0:02:33.8]} 11... Bb6 {[%clk 0:02:40.4]} 12. Qh4 {[%clk 0:02:17.6]} 12...
Nxd5 {[%clk 0:02:39.8]} 13. Qxd8 {[%clk 0:02:18]} 13... Rxd8 {[%clk 0:02:40.7]}
14. Bb2 {[%clk 0:02:14.5]} 14... Bd7 {[%clk 0:02:37.9]} 15. Bxd5 {[%clk
0:02:11.6]} 15... exd5 {[%clk 0:02:37.8]} 16. e3 {[%clk 0:02:05.7]} 16... Bh3
{[%clk 0:02:17.4]} 17. Rd1 {[%clk 0:01:59.8]} 17... Rac8 {[%clk 0:02:14.2]} 18.
Nc3 {[%clk 0:01:43.3]} 18... d4 {[%clk 0:02:13.2]} 19. Na4 {[%clk 0:01:38.1]}
19... dxe3 {[%clk 0:02:13.2]} 20. Nxb6 {[%clk 0:01:37.8]} 20... exf2+ {[%clk
0:02:12]} 21. Kxf2 {[%clk 0:01:37.5]} 21... axb6 {[%clk 0:02:12.9]} 22. Rxd8+
{[%clk 0:01:34.5]} 22... Rxd8 {[%clk 0:02:13.8]} 23. Ke3 {[%clk 0:01:32.1]}
23... h5 {[%clk 0:02:05.8]} 24. Rc1 {[%clk 0:01:25.6]} 24... Re8+ {[%clk
0:02:00.3]} 25. Kf2 {[%clk 0:01:21.6]} 25... b5 {[%clk 0:01:59.3]} 26. b4 {[%clk
0:01:19.1]} 26... Bg4 {[%clk 0:01:54.2]} 27. Rc2 {[%clk 0:01:13.1]} 27... f6
{[%clk 0:01:52.1]} 28. Bd4 {[%clk 0:01:10.8]} 28... Re4 {[%clk 0:01:50.8]} 29.
Bc5 {[%clk 0:01:07]} 29... Kh7 {[%clk 0:01:49.9]} 30. a3 {[%clk 0:01:06.8]}
30... g5 {[%clk 0:01:49.5]} 31. Be3 {[%clk 0:01:06.8]} 31... Kg6 {[%clk
0:01:49.1]} 32. Rc5 {[%clk 0:01:06.1]} 32... Bd7 {[%clk 0:01:40.9]} 33. Rd5
{[%clk 0:01:06.4]} 33... Bc6 {[%clk 0:01:26.3]} 34. Rd6 {[%clk 0:01:06.8]} 34...
Re5 {[%clk 0:01:27]} 35. Bd4 {[%clk 0:01:01.2]} 35... Rf5+ {[%clk 0:01:27.4]}
36. Ke3 {[%clk 0:01:01.5]} 36... Rf3+ {[%clk 0:01:21.7]} 37. Ke2 {[%clk
0:01:00]} 37... g4 {[%clk 0:01:22.6]} 38. Be3 {[%clk 0:00:54.1]} 38... Kf5
{[%clk 0:01:21.2]} 39. Rd8 {[%clk 0:00:54.1]} 39... Ke4 {[%clk 0:01:20.5]} 40.
Rd4+ {[%clk 0:00:54.5]} 40... Ke5 {[%clk 0:01:20.9]} 41. Rd8 {[%clk 0:00:55.1]}
41... h4 {[%clk 0:01:18.5]} 42. Bf4+ {[%clk 0:00:47.7]} 42... Kf5 {[%clk
0:01:16.6]} 43. Rh8 {[%clk 0:00:46.5]} 43... hxg3 {[%clk 0:01:10.1]} 44. hxg3
{[%clk 0:00:46.5]} 44... Rxa3 {[%clk 0:01:10.8]} 45. Rh7 {[%clk 0:00:42.6]}
45... Ke6 {[%clk 0:01:06.8]} 46. Rg7 {[%clk 0:00:42.2]} 46... Kf5 {[%clk
0:01:04.1]} 47. Rh7 {[%clk 0:00:41.7]} 47... Ke4 {[%clk 0:01:04.3]} 48. Re7+
{[%clk 0:00:41.8]} 48... Kd4 {[%clk 0:01:05]} 49. Bd6 {[%clk 0:00:41.4]} 49...
Ra2+ {[%clk 0:01:04.2]} 50. Ke1 {[%clk 0:00:40.5]} 50... Kc4 {[%clk 0:00:57.3]}
51. Bc5 {[%clk 0:00:40.7]} 51... Ra3 {[%clk 0:00:57.3]} 52. Re3 {[%clk
0:00:37.1]} 52... Rxe3+ {[%clk 0:00:56.5]} 53. Bxe3 {[%clk 0:00:37.1]} 53...
Kxb4 {[%clk 0:00:57.4]} 54. Kd2 {[%clk 0:00:37.8]} 54... Kb3 {[%clk 0:00:50.5]}
55. Kc1 {[%clk 0:00:30.5]} 55... b4 {[%clk 0:00:47.5]} 56. Bd4 {[%clk
0:00:30.4]} 56... f5 {[%clk 0:00:47.3]} 57. Be5 {[%clk 0:00:30.9]} 57... Be4
{[%clk 0:00:47.3]} 58. Bd4 {[%clk 0:00:27.3]} 58... Ka2 {[%clk 0:00:46.8]} 59.
Be5 {[%clk 0:00:27.8]} 59... b3 {[%clk 0:00:47.7]} 60. Bd4 {[%clk 0:00:28.2]}
60... f4 {[%clk 0:00:46.3]} 61. gxf4 {[%clk 0:00:26.8]} 61... g3 {[%clk
0:00:47.2]} 0-1